bitfinex/quotes_SOLUSD_20220116
["timestamp","ask_amount","ask_price","bid_price","bid_amount"]
[1642340680023,29.50091234,148.94,148.81,23.7042]
[1642340680226,29.50091234,148.94,148.81,0.25]
[1642340680423,29.50091234,148.94,148.8,39.50620703]
[1642340680624,29.50091234,148.94,148.8,39.25620703]
[1642340681126,24.4865,148.93,148.81,22.9854]
[1642340681325,8.22823951,148.91,148.8,39.25620703]
[1642340681926,8.22823951,148.91,148.8,39.50620703]
[1642340682127,10.12698246,148.91,148.8,39.50620703]
[1642340682328,10.12698246,148.91,148.81,0.26]
[1642340684130,1.89874295,148.91,148.81,0.26]
[1642340684529,1.89874295,148.91,148.82,1.05699858]
[1642340684733,1.89874295,148.91,148.83,0.26]
[1642340685131,1.89874295,148.91,148.83,40.31669863]
[1642340685331,1.89874295,148.91,148.83,107.72669863]
[1642340685936,26.81868587,148.92,148.83,107.72669863]
[1642340686136,1.89874295,148.94,148.83,107.72669863]
[1642340686939,1.89874295,148.91,148.83,107.72669863]
[1642340687133,31.511155,148.91,148.83,107.72669863]
[1642340687734,29.61241205,148.91,148.83,40.56669863]
[1642340687934,29.61241205,148.91,148.83,0.25]
[1642340688334,29.61241205,148.91,148.81,22.8912]
[1642340688537,29.61241205,148.91,148.82,12.671034]
[1642340688934,31.511155,148.91,148.83,39.6671833]
[1642340689134,31.511155,148.91,148.82,0.25]
[1642340689537,1.89874295,148.9,148.82,0.25]
[1642340689735,1.89874295,148.9,148.82,0.51]
[1642340689937,1.89874295,148.9,148.82,0.26]
[1642340690135,1.89874295,148.9,148.81,22.8912]
[1642340690335,1.89874295,148.9,148.81,0.25]
[1642340690737,1.89874295,148.89,148.79,23.3707]
[1642340691339,1.89874295,148.89,148.79,63.73734881]
[1642340692539,1.89874295,148.87,148.8,0.26]
[1642340692748,6.21799685,148.86,148.8,0.26]
[1642340693341,6.21799685,148.86,148.79,63.73734881]
[1642340693641,6.21799685,148.86,148.79,40.61664881]
[1642340694744,1.89874295,148.87,148.79,40.61664881]
[1642340694944,1.89874295,148.87,148.8,0.26]
[1642340696248,1.89874295,148.88,148.8,0.26]
[1642340698451,1.89874295,148.88,148.8,67.42]
[1642340698849,1.89874295,148.88,148.8,67.67]
[1642340699450,1.89874295,148.89,148.8,67.67]
[1642340700158,1.89874295,148.89,148.8,0.25]
[1642340700351,1.89874295,148.89,148.79,40.61664881]
[1642340700550,1.89874295,148.89,148.75,1.74617326]
[1642340700752,1.89874295,148.89,148.75,7.74617326]
[1642340700952,1.89874295,148.89,148.75,1.74617326]
[1642340701353,1.89874295,148.85,148.75,7.74617326]
[1642340701556,1.89874295,148.85,148.76,79.47539629]
[1642340701755,1.89874295,148.85,148.77,28.563817]
[1642340701961,1.89874295,148.85,148.77,46.87022764]
[1642340702156,1.89874295,148.85,148.78,18.0396]
[1642340702357,5.42167915,148.85,148.78,0.25]
[1642340702654,1.89874295,148.88,148.78,0.25]
[1642340703278,1.89874295,148.88,148.76,41.71838129]
[1642340703479,29.6895113,148.87,148.77,10.524217]
[1642340704681,29.6895113,148.87,148.77,10.774217]
[1642340704881,29.6895113,148.87,148.77,0.25]
[1642340705284,29.6895113,148.87,148.76,47.96838129]
[1642340705483,29.6895113,148.87,148.77,10.524217]
[1642340705887,29.6895113,148.87,148.77,10.774217]
[1642340706085,1.89874295,148.86,148.77,0.25]
[1642340706886,1.89874295,148.86,148.76,41.96838129]
[1642340707086,1.89874295,148.86,148.77,10.524217]
[1642340707487,1.89874295,148.86,148.77,10.774217]
[1642340707885,1.89874295,148.86,148.77,0.25]
[1642340708789,1.89874295,148.86,148.76,41.96838129]
[1642340709091,1.89874295,148.86,148.77,10.517547]
[1642340709391,0.99678348,148.82,148.77,10.767547]
[1642340709585,0.99678348,148.82,148.77,0.25]
[1642340709786,1.99356696,148.82,148.77,0.25]
[1642340710185,1.99356696,148.82,148.77,68.47080312]
[1642340710385,1.99356696,148.82,148.77,0.25]
[1642340710586,1.99356696,148.82,148.76,109.12838129]
[1642340710786,1.99356696,148.82,148.77,10.777547]
[1642340710987,1.99356696,148.82,148.77,0.26]
[1642340711185,1.99356696,148.82,148.77,0.51]
[1642340711586,1.99356696,148.82,148.78,8.75688]
[1642340711990,1.99356696,148.82,148.79,0.26]
[1642340712491,1.99356696,148.82,148.78,0.25]
[1642340713093,1.99356696,148.82,148.77,0.26]
[1642340713793,1.99356696,148.82,148.78,5.580384]
[1642340713993,10.37479059,148.81,148.77,0.26]
[1642340714192,10.37479059,148.81,148.74,23.7061]
[1642340714596,10.37479059,148.81,148.73,1.74617326]
[1642340714794,0.99678348,148.78,148.73,1.74617326]
[1642340714993,0.99678348,148.77,148.73,1.74617326]
[1642340715394,0.99678348,148.77,148.71,1.74617326]
[1642340715997,0.99678348,148.77,148.71,1.99617326]
[1642340716198,0.99678348,148.77,148.72,35.58268409]
[1642340716397,0.99678348,148.77,148.72,35.83268409]
[1642340717398,0.99678348,148.77,148.72,35.58268409]
[1642340717598,25.45561831,148.76,148.7,22.6316]
[1642340717998,25.45561831,148.76,148.69,1.74617326]
[1642340718399,0.99678348,148.77,148.69,1.74617326]
[1642340718801,0.99678348,148.77,148.69,1.99617326]
[1642340719300,0.99678348,148.77,148.69,1.31080312]
[1642340719502,0.99678348,148.77,148.7,36.82072666]
[1642340719999,0.99678348,148.74,148.7,37.07072666]
[1642340720209,1.99356696,148.74,148.7,37.07072666]
[1642340721010,1.99356696,148.74,148.7,0.25]
[1642340721406,1.99356696,148.74,148.69,1.99617326]
[1642340722036,6.43829689,148.73,148.69,40.43431476]
[1642340722239,6.43829689,148.73,148.69,0.25]
[1642340722435,6.43829689,148.73,148.68,0.25]
[1642340723436,6.43829689,148.73,148.65,1.74617326]
[1642340724237,6.43829689,148.73,148.64,26.13577326]
[1642340724639,6.43829689,148.73,148.64,1.74617326]
[1642340725338,0.99678348,148.68,148.63,1.74617326]
[1642340725538,29.39211201,148.67,148.63,1.74617326]
[1642340726239,29.39211201,148.67,148.59,24.80277326]
[1642340726442,29.39211201,148.67,148.6,17.313853]
[1642340726840,29.39211201,148.67,148.6,0.25]
[1642340727040,29.39211201,148.67,148.59,25.05277326]
[1642340727242,29.39211201,148.67,148.6,38.99701054]
[1642340728343,29.39211201,148.67,148.6,39.24701054]
[1642340728543,1.99356696,148.68,148.6,106.40701054]
[1642340728842,1.99356696,148.68,148.61,1.32080312]
[1642340729142,3.81712908,148.81,148.62,0.07]
[1642340729346,47.5868,148.8,148.63,67.16]
[1642340729545,31.65813814,148.77,148.65,44.68894722]
[1642340729952,31.65813814,148.77,148.66,0.26]
[1642340730447,31.65813814,148.77,148.66,23.0125]
[1642340730945,31.65813814,148.77,148.66,23.0025]
[1642340731145,31.65813814,148.77,148.65,44.68894722]
[1642340731347,31.65813814,148.77,148.65,44.93894722]
[1642340731547,1.70077588,148.76,148.61,7.74617326]
[1642340731746,25.93127588,148.76,148.61,1.74617326]
[1642340732149,10.0888,148.74,148.61,1.74617326]
[1642340732350,22.546,148.73,148.61,1.74617326]
[1642340732555,4.17227076,148.72,148.62,48.98621509]
[1642340733003,4.17227076,148.72,148.62,49.23621509]
[1642340733205,4.17227076,148.72,148.63,0.26]
[1642340735803,4.17227076,148.72,148.62,49.23621509]
[1642340737840,4.17227076,148.72,148.62,48.98621509]
[1642340738837,4.17227076,148.72,148.62,49.23621509]
[1642340740742,4.17227076,148.72,148.62,48.98621509]
[1642340741846,4.17227076,148.72,148.62,49.23621509]
[1642340743446,4.17227076,148.72,148.63,0.26]
[1642340744646,4.17227076,148.72,148.62,49.23621509]
[1642340746349,4.17227076,148.72,148.62,0.25]
[1642340746547,4.17227076,148.72,148.61,1.74617326]
[1642340746948,4.17227076,148.72,148.61,1.99617326]
[1642340747348,4.17227076,148.72,148.61,41.98109431]
[1642340748250,4.17227076,148.72,148.61,40.23492105]
[1642340749050,4.17227076,148.72,148.61,41.98109431]
[1642340749252,4.17227076,148.72,148.61,41.73109431]
[1642340749551,81.42247076,148.72,148.61,41.73109431]
[1642340750551,81.42247076,148.72,148.61,39.98492105]
[1642340750952,81.42247076,148.72,148.6,1.74617326]
[1642340750953,1.70077588,148.71,148.6,1.74617326]
[1642340751151,24.28767588,148.71,148.6,7.326e-05]
[1642340751350,10.0946,148.68,148.6,7.326e-05]
[1642340751550,18.2396,148.68,148.6,7.326e-05]
[1642340752051,29.40828108,148.67,148.6,7.326e-05]
[1642340752249,1.70077588,148.69,148.6,7.326e-05]
[1642340752449,10.0927,148.68,148.6,7.326e-05]
[1642340752650,10.0927,148.68,148.57,0.25]
[1642340753052,31.25717162,148.69,148.57,0.25]
[1642340753253,31.25717162,148.69,148.58,1.06153522]
[1642340753451,31.25717162,148.69,148.59,0.26]
[1642340753853,31.25717162,148.69,148.59,1.32153522]
[1642340754052,26.40402908,148.71,148.59,1.32153522]
[1642340754253,22.5869,148.71,148.59,25.91553522]
[1642340754452,26.97712908,148.75,148.6,14.423826]
[1642340754654,24.8376,148.74,148.59,31.91553522]
[1642340754852,24.8376,148.74,148.61,1.06153522]
[1642340755054,34.75587991,148.73,148.62,36.34893174]
[1642340755256,34.75587991,148.73,148.63,24.9566]
[1642340755683,34.75587991,148.73,148.63,25.2066]
[1642340756084,34.75587991,148.73,148.64,0.26]
[1642340761590,34.75587991,148.73,148.62,36.34893174]
[1642340762800,44.84527991,148.73,148.59,3.56318653]
[1642340763090,24.2756,148.72,148.6,0.26]
[1642340763992,24.2756,148.72,148.6,41.28665458]
[1642340763993,34.3657,148.72,148.6,41.28665458]
[1642340766393,34.3657,148.72,148.6,0.26]
[1642340766694,34.3657,148.72,148.58,23.8679]
[1642340767391,34.3657,148.72,148.59,47.8205646]
[1642340768891,34.3657,148.72,148.58,23.8679]
[1642340769495,34.3657,148.72,148.59,0.26]
[1642340769796,34.3657,148.72,148.58,23.8679]
[1642340769994,34.3657,148.72,148.58,71.0333974]
[1642340770193,34.3657,148.72,148.58,23.8679]
[1642340770394,34.3657,148.72,148.59,0.26]
[1642340770798,34.3657,148.72,148.58,23.8679]
[1642340770995,34.3657,148.72,148.55,3.56318653]
[1642340771196,34.3657,148.72,148.56,44.69241975]
[1642340771897,67.16,148.71,148.56,44.69241975]
[1642340772197,1.07452899,148.68,148.56,44.94241975]
[1642340772399,23.66182899,148.68,148.56,44.69241975]
[1642340772598,30.53082899,148.68,148.56,44.69241975]
[1642340772797,30.53082899,148.68,148.54,1.06153522]
[1642340772998,40.62362899,148.68,148.55,0.26]
[1642340774232,40.62362899,148.68,148.55,23.5883]
[1642340774505,40.62362899,148.68,148.55,23.5783]
[1642340774702,40.62362899,148.68,148.54,1.06153522]
[1642340775004,40.62362899,148.68,148.53,3.56318653]
[1642340776008,42.32440487,148.68,148.53,3.56318653]
[1642340776707,42.32440487,148.68,148.5,33.44957436]
[1642340776907,42.32440487,148.68,148.51,43.47747664]
[1642340778206,42.32440487,148.68,148.5,24.6362]
[1642340778807,42.32440487,148.68,148.48,13.79218653]
[1642340779006,42.32440487,148.68,148.48,14.04218653]
[1642340779209,67.16,148.67,148.49,45.64032729]
[1642340779408,10.0976,148.62,148.49,45.64032729]
[1642340779606,32.4512507,148.61,148.5,23.6052]
[1642340780207,32.4512507,148.61,148.49,1.0585981]
[1642340780406,23.6982,148.6,148.49,1.0585981]
[1642340780607,42.6147,148.6,148.49,1.0585981]
[1642340780807,42.6147,148.6,148.48,10.229]
[1642340781007,42.6147,148.6,148.49,23.2716]
[1642340782008,33.7967,148.6,148.5,11.245778]
[1642340782207,33.7967,148.6,148.49,23.2716]
[1642340782609,33.7967,148.6,148.47,36.67391794]
[1642340783007,33.7967,148.6,148.47,37.98251604]
[1642340783409,33.7967,148.6,148.47,36.67391794]
[1642340783907,33.7967,148.6,148.47,37.73251604]
[1642340784112,33.7967,148.6,148.47,36.67391794]
[1642340784310,32.4512507,148.61,148.48,1.0585981]
[1642340784510,32.4512507,148.61,148.48,24.1611981]
[1642340784709,32.4512507,148.61,148.49,0.26]
[1642340785112,32.4512507,148.61,148.49,1.3185981]
[1642340785309,32.4512507,148.61,148.5,1.0585981]
[1642340785713,32.4512507,148.61,148.51,67.42]
[1642340785910,32.4512507,148.61,148.52,47.94359661]
[1642340786109,32.4512507,148.61,148.52,48.99860321]
[1642340786409,32.4512507,148.61,148.53,1.3150066]
[1642340786811,32.4512507,148.61,148.53,1.5650066]
[1642340787509,10.0943,148.66,148.53,1.5650066]
[1642340787710,22.7037,148.67,148.53,68.7250066]
[1642340787911,22.7037,148.67,148.54,25.7701066]
[1642340788311,22.7037,148.67,148.55,1.3150066]
[1642340788514,31.2469022,148.66,148.55,1.3150066]
[1642340788711,31.2469022,148.66,148.55,1.5650066]
[1642340790414,31.2469022,148.66,148.55,0.51]
[1642340790913,31.2469022,148.66,148.54,24.9651]
[1642340791613,31.2469022,148.66,148.54,24.7151]
[1642340791915,98.4069022,148.66,148.54,24.7151]
[1642340792112,31.2469022,148.66,148.54,24.7151]
[1642340792514,41.3412022,148.66,148.54,24.7151]
[1642340793213,67.16,148.65,148.54,24.7151]
[1642340793415,31.2469022,148.66,148.54,24.7151]
[1642340794117,32.94767808,148.66,148.54,24.7151]
[1642340794315,67.16,148.65,148.53,23.2437]
[1642340794518,100.2972,148.65,148.53,23.2437]
[1642340795316,33.1372,148.65,148.53,23.2437]
[1642340801358,33.1372,148.65,148.49,3.56318653]
[1642340801359,10.0976,148.61,148.49,3.56318653]
[1642340801559,105.0,148.6,148.49,0.50368756]
[1642340801757,106.70077588,148.6,148.45,5.25018783]
[1642340802159,1.02032017,148.58,148.45,5.25018783]
[1642340802364,9.24032017,148.58,148.45,5.25018783]
[1642340802559,11.80197588,148.57,148.45,5.25018783]
[1642340802759,11.80197588,148.57,148.41,5.25018783]
[1642340802959,1.70077588,148.56,148.41,5.25018783]
[1642340803561,24.9772852,148.55,148.41,5.25018783]
[1642340803760,30.8542852,148.55,148.41,5.25018783]
[1642340803959,1.70077588,148.54,148.41,5.25018783]
[1642340804360,30.8542852,148.55,148.41,5.25018783]
[1642340804562,7.28993717,148.51,148.4,36.33947993]
[1642340804763,47.6763,148.58,148.4,36.58947993]
[1642340804972,47.6763,148.58,148.41,24.6095]
[1642340805362,47.6763,148.58,148.41,24.8595]
[1642340805560,1.70077588,148.63,148.41,24.8595]
[1642340805760,3.37672578,148.59,148.42,0.26]
[1642340806361,3.37672578,148.59,148.42,67.42]
[1642340806560,3.37672578,148.59,148.43,35.49187918]
[1642340806960,3.37672578,148.59,148.44,0.26]
[1642340807162,3.37672578,148.59,148.44,67.42]
[1642340807361,3.37672578,148.59,148.44,67.67]
[1642340807663,3.37672578,148.59,148.44,73.67]
[1642340808060,3.37672578,148.59,148.46,47.87990254]
[1642340808260,3.37672578,148.59,148.47,67.16]
[1642340808463,3.37672578,148.59,148.47,67.67]
[1642340808661,124.2974,148.64,148.47,67.67]
[1642340809060,1.70077588,148.65,148.47,67.67]
[1642340809561,1.70077588,148.65,148.47,90.8003]
[1642340809761,26.41673291,148.64,148.47,90.8003]
[1642340810163,26.41673291,148.64,148.48,3.81614159]
[1642340810364,26.41673291,148.64,148.49,39.84637652]
[1642340810561,67.16,148.63,148.49,39.84637652]
[1642340810763,68.86077588,148.63,148.49,40.09637652]
[1642340811363,1.70077588,148.62,148.49,40.09637652]
[1642340811563,5.85048946,148.61,148.49,39.84637652]
[1642340811964,1.70077588,148.6,148.49,39.84637652]
[1642340812466,5.85048946,148.61,148.49,39.84637652]
[1642340812663,7.55126534,148.61,148.49,39.84637652]
[1642340813165,1.70077588,148.6,148.49,0.26]
[1642340813363,1.70077588,148.6,148.48,0.26]
[1642340813563,15.94848946,148.61,148.48,0.26]
[1642340814063,15.94848946,148.61,148.48,47.55672829]
[1642340814264,15.94848946,148.61,148.48,114.71672829]
[1642340814463,15.94848946,148.61,148.48,114.96672829]
[1642340814663,17.64926534,148.61,148.48,114.71672829]
[1642340814963,17.64926534,148.61,148.48,114.96672829]
[1642340818265,5.85048946,148.61,148.48,114.96672829]
[1642340819467,5.85048946,148.61,148.48,120.96672829]
[1642340821868,5.85048946,148.61,148.48,53.54672829]
[1642340822471,5.85048946,148.61,148.48,47.54672829]
[1642340822871,5.85048946,148.61,148.48,53.54672829]
[1642340823271,5.85048946,148.61,148.49,0.26]
[1642340825274,1.70077588,148.6,148.49,0.26]
[1642340826176,12.93548946,148.61,148.48,47.29672829]
[1642340826376,5.85048946,148.61,148.48,47.29672829]
[1642340827075,7.55126534,148.61,148.48,47.29672829]
[1642340827676,7.55126534,148.61,148.49,0.26]
[1642340828779,5.85048946,148.61,148.49,0.26]
[1642340829578,5.85048946,148.61,148.49,1.31879228]
[1642340829978,5.85048946,148.61,148.5,67.16]
[1642340830180,5.85048946,148.61,148.51,41.63604934]
[1642340830380,5.85048946,148.61,148.51,49.20484162]
[1642340831107,5.85048946,148.61,148.52,1.05879228]
[1642340831315,5.85048946,148.61,148.53,0.26]
[1642340831508,47.2046,148.7,148.53,67.42]
[1642340831709,94.4,148.71,148.54,1.05879228]
[1642340831910,94.4,148.71,148.55,67.42]
[1642340832312,94.4,148.71,148.56,1.05879228]
[1642340832513,25.70989308,148.7,148.58,67.16]
[1642340832916,25.70989308,148.7,148.59,0.26]
[1642340837721,25.70989308,148.7,148.58,67.17]
[1642340839318,25.70989308,148.7,148.59,0.26]
[1642340839518,25.70989308,148.7,148.58,0.25]
[1642340839720,25.70989308,148.7,148.58,0.26]
[1642340839918,92.86989308,148.7,148.55,10.2495]
[1642340840118,92.86989308,148.7,148.54,6.0]
[1642340840119,125.57909308,148.7,148.54,6.0]
[1642340840318,135.67249308,148.7,148.53,46.34679228]
[1642340840520,160.64579308,148.7,148.53,46.34679228]
[1642340840718,160.64579308,148.7,148.54,0.26]
[1642340841320,0.26,148.69,148.54,0.26]
[1642340842121,0.26,148.69,148.53,91.31116872]
[1642340843320,0.26,148.69,148.54,0.26]
[1642340845926,0.26,148.69,148.54,1.31879228]
[1642340846124,0.26,148.69,148.54,1.56879228]
[1642340846526,0.26,148.69,148.54,1.31879228]
[1642340846727,0.26,148.69,148.54,1.56879228]
[1642340850432,67.42,148.69,148.54,1.05879228]
[1642340850631,6.853,148.69,148.54,1.05879228]
[1642340851733,0.26,148.69,148.55,0.26]
[1642340851937,0.26,148.69,148.56,36.0473642]
[1642340852334,0.26,148.69,148.57,0.26]
[1642340854636,0.26,148.69,148.58,1.05879228]
[1642340854834,0.26,148.69,148.59,115.4059742]
[1642340855037,25.70989308,148.7,148.59,115.4059742]
[1642340855335,25.70989308,148.7,148.6,1.05879228]
[1642340855736,25.70989308,148.7,148.61,0.26]
[1642340856134,25.70989308,148.7,148.61,1.31879228]
[1642340856335,25.70989308,148.7,148.62,40.94680343]
[1642340856761,25.70989308,148.7,148.63,0.26]
[1642340858640,0.26,148.69,148.63,0.26]
[1642340859340,25.70989308,148.7,148.63,0.26]
[1642340859540,25.70989308,148.7,148.63,67.42]
[1642340859944,25.70989308,148.7,148.63,67.67]
[1642340861842,24.72179465,148.7,148.63,67.67]
[1642340863053,47.3873,148.76,148.63,67.67]
[1642340863244,47.3873,148.76,148.64,1.05879228]
[1642340863444,47.3873,148.76,148.65,0.26]
[1642340864046,24.45591429,148.75,148.65,45.09468452]
[1642340864273,24.45591429,148.75,148.65,0.26]
[1642340864471,24.45591429,148.75,148.65,0.51]
[1642340864874,24.45591429,148.75,148.65,0.25]
[1642340865173,24.45591429,148.75,148.65,38.71419108]
[1642340865774,24.45591429,148.75,148.66,0.26]
[1642340866377,24.45591429,148.75,148.66,1.31879228]
[1642340866773,0.26,148.74,148.66,1.56879228]
[1642340866975,24.45591429,148.75,148.66,67.67]
[1642340867375,24.45591429,148.75,148.66,74.72879228]
[1642340868875,94.4,148.79,148.66,74.72879228]
[1642340869475,94.4,148.79,148.66,84.63548794]
[1642340869678,94.4,148.79,148.66,107.26398794]
[1642340869876,29.63776041,148.78,148.66,107.26398794]
[1642340870276,29.63776041,148.78,148.66,97.35729228]
[1642340877583,94.4,148.79,148.66,97.35729228]
[1642340877983,1.90423472,148.83,148.66,107.26398794]
[1642340878384,1.90423472,148.83,148.66,107.00398794]
[1642340878586,31.15505193,148.82,148.66,107.00398794]
[1642340878784,31.15505193,148.82,148.66,97.09729228]
[1642340879185,0.26,148.81,148.66,97.09729228]
[1642340879790,0.26,148.81,148.67,0.26]
[1642340880096,0.26,148.81,148.68,1.05879228]
[1642340880388,0.26,148.81,148.69,41.20341056]
[1642340880593,0.26,148.81,148.7,23.0745]
[1642340880886,0.26,148.81,148.71,0.26]
[1642340881287,31.15505193,148.82,148.71,0.26]
[1642340883790,0.26,148.81,148.72,46.87081193]
[1642340883989,0.26,148.81,148.73,67.16]
[1642340884189,0.26,148.81,148.73,67.42]
[1642340884390,0.26,148.81,148.73,73.67]
[1642340885090,0.26,148.81,148.7,23.0745]
[1642340885288,0.26,148.81,148.69,1.05879228]
[1642340885489,24.3313,148.81,148.69,1.05879228]
[1642340885792,24.3313,148.81,148.66,2.88738295]
[1642340885988,24.3313,148.81,148.67,22.9274]
[1642340886188,24.3313,148.81,148.68,46.22165652]
[1642340886391,24.3313,148.81,148.68,47.2804488]
[1642340886790,26.23553472,148.81,148.68,46.22165652]
[1642340887192,26.23553472,148.81,148.68,46.47165652]
[1642340887791,1.90423472,148.8,148.68,46.47165652]
[1642340887992,1.90423472,148.8,148.68,46.22165652]
[1642340888695,1.90423472,148.8,148.69,67.42]
[1642340889394,1.90423472,148.8,148.69,67.67]
[1642340889595,25.97553472,148.81,148.69,67.67]
[1642340890796,25.97553472,148.81,148.69,91.0964]
[1642340891196,25.97553472,148.81,148.69,90.8464]
[1642340891398,1.90423472,148.8,148.69,90.8464]
[1642340891595,1.90423472,148.8,148.69,90.5864]
[1642340891797,0.26,148.79,148.69,90.5864]
[1642340891996,0.26,148.79,148.69,67.16]
[1642340892598,2.16423472,148.79,148.69,67.16]
[1642340892804,2.16423472,148.79,148.69,67.41]
[1642340893298,1.90423472,148.78,148.69,0.25]
[1642340893701,1.90423472,148.78,148.67,0.25]
[1642340893903,1.90423472,148.78,148.66,26.72769067]
[1642340894504,1.90423472,148.78,148.66,75.43776485]
[1642340895303,1.90423472,148.76,148.66,73.60917418]
[1642340895505,1.90423472,148.76,148.66,0.25]
[1642340895904,1.90423472,148.76,148.65,24.9288]
[1642340896407,1.90423472,148.76,148.66,42.84791451]
[1642340896808,1.90423472,148.76,148.66,43.09791451]
[1642340898336,1.90423472,148.76,148.66,0.25]
[1642340898539,2.16423472,148.77,148.66,0.26]
[1642340898736,69.32423472,148.77,148.64,1.82859067]
[1642340898939,22.7103,148.76,148.64,1.82859067]
[1642340899939,2.16423472,148.75,148.62,1.82859067]
[1642340900139,24.0641,148.74,148.62,1.82859067]
[1642340900438,32.3781,148.74,148.62,1.82859067]
[1642340901041,34.28233472,148.74,148.61,48.23170003]
[1642340902545,1.90423472,148.73,148.59,26.54199067]
[1642340902742,1.90423472,148.73,148.59,26.79199067]
[1642340903043,1.90423472,148.73,148.6,0.26]
[1642340903442,1.90423472,148.73,148.6,48.75724965]
[1642340903742,25.96833472,148.74,148.6,116.97604193]
[1642340903944,25.96833472,148.74,148.6,117.22604193]
[1642340904945,24.0641,148.74,148.6,117.22604193]
[1642340905143,24.0641,148.74,148.61,24.02]
[1642340905344,24.0641,148.74,148.62,67.42]
[1642340905544,24.0641,148.74,148.63,41.42362641]
[1642340905743,24.0641,148.74,148.63,108.58362641]
[1642340905947,24.0641,148.74,148.63,41.42362641]
[1642340906344,24.0641,148.74,148.62,0.26]
[1642340906345,0.26,148.73,148.62,0.26]
[1642340907345,0.26,148.73,148.62,38.07950038]
[1642340907547,0.26,148.73,148.62,38.32950038]
[1642340908644,0.26,148.73,148.62,38.07950038]
[1642340910547,24.0641,148.74,148.62,38.07950038]
[1642340912248,24.0641,148.74,148.62,37.81950038]
[1642340913850,0.26,148.73,148.62,37.81950038]
[1642340914853,0.26,148.73,148.63,0.26]
[1642340915355,0.26,148.73,148.65,43.11232588]
[1642340916154,0.26,148.73,148.64,1.05879228]
[1642340916354,0.26,148.73,148.61,26.04079067]
[1642340917078,0.26,148.73,148.62,49.67925551]
[1642340917876,2.16423472,148.73,148.63,0.26]
[1642340918076,2.16423472,148.73,148.62,49.67925551]
[1642340918377,2.16423472,148.73,148.63,0.26]
[1642340918775,0.26,148.73,148.63,0.26]
[1642340921081,0.26,148.73,148.62,49.92925551]
[1642340921282,0.26,148.73,148.62,49.67925551]
[1642340921483,7.344,148.73,148.61,1.82859067]
[1642340922085,23.4562,148.72,148.61,1.82859067]
[1642340922682,23.4562,148.72,148.6,47.9779347]
[1642340923082,90.6162,148.72,148.6,47.9779347]
[1642340923786,92.52043472,148.72,148.6,47.9779347]
[1642340924185,0.26,148.71,148.6,47.9779347]
[1642340924589,1.90423472,148.71,148.6,47.9779347]
[1642340925385,1.90423472,148.71,148.61,1.05879228]
[1642340925586,25.36043472,148.72,148.61,1.05879228]
[1642340925786,25.36043472,148.72,148.6,49.80652537]
[1642340925986,0.26,148.71,148.6,49.80652537]
[1642340926188,0.26,148.71,148.6,50.05652537]
[1642340926486,6.111,148.71,148.6,49.80652537]
[1642340926686,6.111,148.71,148.6,1.82859067]
[1642340926886,24.6611,148.7,148.6,1.82859067]
[1642340927789,24.6611,148.7,148.59,52.30560009]
[1642340928488,91.8211,148.7,148.59,52.30560009]
[1642340928689,91.8211,148.7,148.59,50.47700942]
[1642340928891,1.90423472,148.69,148.59,50.47700942]
[1642340929991,93.72533472,148.7,148.59,50.47700942]
[1642340931892,0.26,148.69,148.59,50.47700942]
[1642340932097,93.72533472,148.7,148.59,50.47700942]
[1642340932098,26.56533472,148.7,148.59,50.47700942]
[1642340933301,0.26,148.69,148.58,1.82859067]
[1642340935632,0.26,148.69,148.57,46.81159148]
[1642340936032,0.26,148.69,148.57,47.86768303]
[1642340936234,0.26,148.69,148.58,0.26]
[1642340936432,26.56533472,148.7,148.58,24.8513]
[1642340936633,24.6611,148.7,148.58,26.67989067]
[1642340937134,67.16,148.69,148.58,26.67989067]
[1642340937336,72.704,148.69,148.58,26.67989067]
[1642340937636,72.704,148.69,148.58,24.8513]
[1642340937838,0.26,148.68,148.58,24.8513]
[1642340938935,26.56533472,148.7,148.58,24.8513]
[1642340939135,26.56533472,148.7,148.59,0.26]
[1642340939634,26.56533472,148.7,148.59,1.31609155]
[1642340939838,26.56533472,148.7,148.6,41.46206375]
[1642340940235,0.26,148.69,148.61,1.31609155]
[1642340940436,0.26,148.69,148.61,1.56609155]
[1642340940638,0.26,148.69,148.61,0.51]
[1642340941237,0.26,148.69,148.61,1.56609155]
[1642340941637,24.6611,148.7,148.61,1.56609155]